Cogmind - Beta 10.1 --- EXPLORER MODE // 2021.09.29 @ 08:55:21 Player: Inpenem Result: Destroyed by S-10 Pest with Light Assault Rifle Performance ------------- Evolutions (1) 500 Regions Visited (2) 400 Robots Destroyed (5) 25 Value Destroyed (50) 50 Prototype IDs (1) 20 Alien Tech Used (0) 0 Bonus (0) 0 TOTAL SCORE: 995 Bonus ------- None Cogmind --------- Core Integrity 0/400 Matter 300/300 Energy 79/100 System Corruption 6% Temperature Cool (9) Movement Core (50) Location -9/Materials Parts ------- > --- POWER (1) -------- (None) > --- PROPULSION (2) --- (None) > --- UTILITY (5) ------ Structural Scanner > --- WEAPON (2) ------- (None) > --- INVENTORY (4) ---- Integration Mediator Particle Gun Beam Cannon Assault Rifle Peak State ------------ > --- POWER ------------ Heavy Ion Engine > --- PROPULSION ------- VTOL Module VTOL Module > --- UTILITY ---------- Structural Scanner Sensor Array > --- WEAPON ----------- Small Laser Assault Rifle > --- INVENTORY -------- Ion Engine Core Shielding Integration Mediator Beam Cannon [Rating: 11] Favorites ----------- Power Ion Engine Engine Ion Engine Propulsion VTOL Module Leg Aluminum Leg Flight Unit VTOL Module Utility Structural Scanner Device Structural Scanner Protection Core Shielding Weapon Small Laser Energy Gun Small Laser Ballistic Gun Assault Rifle Special Weapon Mining Laser Build | -11 -10 -9 ------- Run | Scr Mat Mat Slots Evolved 3 | . 1 2 Power . | . . . Propulsion . | . . . Utility 3 | . 1 2 Weapon . | . . . Parts Attached 15 | 8 3 4 Power 3 | 1 . 2 Engine 3 | 1 . 2 Core . | . . . Reactor . | . . . Propulsion 4 | 2 2 . Treads . | . . . Leg 2 | 2 . . Wheel . | . . . Hover . | . . . Flight 2 | . 2 . Utility 4 | 2 1 1 Device 2 | 1 1 . Storage . | . . . Processor . | . . . Hackware . | . . . Protection 2 | 1 . 1 Artifact . | . . . Weapon 4 | 3 . 1 Energy Gun 1 | 1 . . Energy Cannon . | . . . Ballistic Gun 2 | 2 . . Ballistic Cannon . | . . . Launcher . | . . . Special Weapon 1 | . . 1 Impact Weapon . | . . . Slashing Weapon . | . . . Piercing Weapon . | . . . Special Melee Weapon . | . . . Unidentified Prototypes 1 | . . 1 Parts Lost 6 | . . 6 Power 1 | . . 1 Propulsion 2 | . . 2 Utility 1 | . . 1 Weapon 2 | . . 2 Highest Loss Streak 4 | . . 4 Average Slot Usage (%) 54 | . 87 45 Engine 5 | . 12 3 Leg 1 | . 5 . Flight 17 | . 20 16 Device 13 | . 12 13 Protection 6 | . 12 5 Energy Gun 5 | . 12 3 Ballistic Gun 4 | . 12 2 Naked Turns . | . . . Heaviest Build 11 | 10 11 10 Greatest Support 20 | 20 20 10 Greatest Overweight (x) 1 | . 1 . Average Overweight (x) . | . . . Largest Inventory Capacity 4 | 4 4 4 Average Capacity 4 | 4 4 4 Most Carried 4 | 4 3 4 Average Carried 3 | . 1 3 Final Capacity 4 | 4 4 4 Final Carried 4 | . 3 4 Class Distribution -------------------- 100% | Hacker-Mutant Dominant Class ---------------- Hacker-Mutant | -10/Materials Hacker-Mutant | -9/Materials Resources | -11 -10 -9 ----------- Run | Scr Mat Mat Matter Collected 299 | 99 75 125 Remotely . | . . . Salvage Created 82 | . 26 56 Parts 8 | . 3 5 Haulers Intercepted . | . . . Recyclers Shooed . | . . . Parts Field Recycled . | . . . Retrieved Matter . | . . . Parts Self-Destructed . | . . . Prevented . | . . . Kills | -11 -10 -9 ------- Run | Scr Mat Mat Combat Hostiles Destroyed 5 | . 2 3 Melee 3 | . . 3 Guns 2 | . 2 . Classes Destroyed 1 | . 1 . Swarmer 5 | . 2 3 Best Kill Streak 3 | . 2 3 Combat Bots Only 3 | . 2 3 Max Kills in Single Turn 1 | . 1 1 Gunslinging . | . . . Exploded . | . . . Melee 1 | . . 1 Uniques/NPCs Destroyed . | . . . Combat | -11 -10 -9 -------- Run | Scr Mat Mat Damage Taken 763 | . 29 734 Core 409 | . 9 400 Absorbed by Shields . | . . . Core Remaining (%) 98 | 100 96 . Volleys Fired 9 | . 2 7 Largest 2 | . 2 1 Hottest 100 | . 60 100 Shots Fired 11 | . 4 7 Gun 4 | . 4 . Cannon . | . . . Launcher . | . . . Special 7 | . . 7 Kinetic 2 | . 2 . Thermal 9 | . 2 7 Explosive . | . . . Electromagnetic . | . . . Robot Hit Streak 2 | . 2 . Robot Miss Streak 1 | . 1 . Penetration Max . | . . . Secondary Targets 1 | . 1 . Max Gunslinging Chain 1 | . 1 . Shots Hit Robots 3 | . 3 . Core Hits 8 | . 2 6 Critical Hits . | . . . Critical Kills . | . . . Critical Parts Destroyed . | . . . Melee Attacks . | . . . Impact . | . . . Slashing . | . . . Piercing . | . . . Sneak Attacks . | . . . Combat Hostiles . | . . . Follow-up Attacks . | . . . Damage Inflicted 88 | . 36 52 Guns 36 | . 36 . Cannons . | . . . Explosions . | . . . Melee . | . . . Ramming 52 | . . 52 Kinetic 25 | . 25 . Thermal 11 | . 11 . Explosive . | . . . Electromagnetic . | . . . Impact . | . . . Slashing . | . . . Piercing . | . . . Highest Corruption 6 | . . 6 Average Corruption 6 | . . 6 Corruption Purged . | . . . Effects 10 | . . 10 Matter Fused 1 | . . 1 Heat Flow Errors 2 | . . 2 Energy Discharges 3 | . . 3 Parts Rejected 1 | . . 1 Data Loss (major) 3 | . . 3 Overload Shots . | . . . Overflow Damage . | . . . Projectiles . | . . . Explosions . | . . . Melee . | . . . Knockbacks . | . . . Impact . | . . . Kinetic . | . . . Secondary . | . . . Self-Inflicted Damage 25 | . . 25 Shots . | . . . Rammed 11 | . . 11 Targets Rammed 11 | . . 11 Kicked . | . . . Crushed . | . . . Highest Temperature 264 | . 12 264 Average Temperature 60 | . 7 66 Received Heat Transfer 87 | . . 87 Siege Activations . | . . . Robots Corrupted . | . . . Combat Hostiles . | . . . Parts Fried . | . . . Impact Corruptions . | . . . Robots Melted . | . . . Combat Hostiles . | . . . Parts Melted . | . . . Heat Transferred 25 | . 25 . Parts Sabotaged . | . . . Parts Stolen . | . . . Parts Stripped . | . . . Power Chain Reactions . | . . . Missiles Intercepted . | . . . Alert | -11 -10 -9 ------- Run | Scr Mat Mat Peak Influence 164 | . 97 164 Initial 29 | . . 29 Average 46 | . 21 63 Maximum Alert Level . | . . . Low Security (%) 100 | 100 100 100 Level 1 . | . . . Level 2 . | . . . Level 3 . | . . . Level 4 . | . . . Level 5 . | . . . High Security . | . . . Max Security . | . . . Squads Dispatched 1 | . . 1 Investigation . | . . . Extermination . | . . . Reinforcement 1 | . . 1 Assault . | . . . Garrison . | . . . Intercept . | . . . Construction Impeded . | . . . Haulers Reinforced . | . . . Stealth | -11 -10 -9 --------- Run | Scr Mat Mat Distress Signals 1 | . . 1 Communications Jammed . | . . . Distress Signals . | . . . Times Spotted 35 | . 8 27 Peak Tracking Total 12 | . 7 12 Tactical Retreats 7 | . 1 6 Traps | -11 -10 -9 ------- Run | Scr Mat Mat Traps Triggered 2 | . . 2 Indirectly . | . . . Trap Hack Attempts . | . . . Triggered . | . . . Disarmed . | . . . Reprogrammed . | . . . Reused . | . . . Traps Extracted . | . . . Installed . | . . . Triggered . | . . . Machines | -11 -10 -9 ---------- Run | Scr Mat Mat Machines Disabled . | . . . Max in Single Turn . | . . . Machines Sabotaged . | . . . Garrisons Compromised . | . . . Overloaded Fab Kills . | . . . Fab Network Shutdowns . | . . . Hacking | -11 -10 -9 --------- Run | Scr Mat Mat Machines Accessed 2 | . 1 1 Terminals 2 | . 1 1 Fabricators . | . . . Repair Stations . | . . . Recycling Units . | . . . Scanalyzers . | . . . Garrison Access . | . . . Total Hacks 2 | . 1 1 Successful 2 | . 1 1 Failed . | . . . Catastrophic . | . . . Database Lockouts . | . . . Manual . | . . . Terminals 2 | . 1 1 Fabricators . | . . . Repair Stations . | . . . Recycling Units . | . . . Scanalyzers . | . . . Garrison Access . | . . . Terminal Hacks 2 | . 1 1 Record 1 | . . 1 Dispatch Records 1 | . 1 . Fabricator Hacks . | . . . Repair Station Hacks . | . . . Recycling Unit Hacks . | . . . Scanalyzer . | . . . Garrison Access Hacks . | . . . Unauthorized Hacks . | . . . Terminals . | . . . Fabricators . | . . . Repair Stations . | . . . Recycling Units . | . . . Scanalyzers . | . . . Garrison Access . | . . . Data Cores Recovered . | . . . Used . | . . . Hacking Detections 1 | . . 1 Full Trace Events . | . . . Feedback Events . | . . . Feedback Blocked . | . . . Robot Schematics Acquired . | . . . Robots Built . | . . . Matter . | . . . Time . | . . . Total Robot Build Rating . | . . . Part Schematics Acquired . | . . . Parts Built . | . . . Matter . | . . . Time . | . . . Total Part Build Rating . | . . . Parts Repaired . | . . . Time . | . . . Parts Recycled . | . . . Recycled Matter . | . . . Retrieved Matter . | . . . Retrieved Components . | . . . Parts Scanalyzed . | . . . Part Schematics Acquired . | . . . Parts Damaged . | . . . Bothacking | -11 -10 -9 ------------ Run | Scr Mat Mat Used RIF Installer . | . . . Robots Hacked . | . . . Non-combat . | . . . Combat . | . . . Robot Hacks Applied . | . . . Relay Couplers Released . | . . . Robots Rewired . | . . . Allies Hacked . | . . . Hacks Repelled . | . . . Allies | -11 -10 -9 -------- Run | Scr Mat Mat Total Allies . | . . . Largest Group . | . . . Highest-Rated Group . | . . . Highest-Rated Ally . | . . . Total Orders . | . . . Ally Attacks . | . . . Total Damage . | . . . Kills . | . . . Allies Corrupted . | . . . Allies Melted . | . . . Intel | -11 -10 -9 ------- Run | Scr Mat Mat Robot Analysis Total . | . . . Derelict Logs Recovered . | . . . Drone Launches . | . . . Drone Recoveries . | . . . Exploration | -11 -10 -9 ------------- Run | Scr Mat Mat Turns Passed 542 | 76 99 367 Spaces Moved 879 | 58 202 619 Core 93 | 16 . 77 Treads . | . . . Legs 51 | 42 9 . Wheels . | . . . Hover . | . . . Flight 735 | . 193 542 Fastest Speed 37 | 50 37 37 Average Speed 43 | 100 41 38 Slowest Speed 120 | 120 120 50 Overloaded Moves . | . . . Propulsion Burnouts . | . . . Robots Hopped 8 | . . 8 Cave-ins Triggered 1 | . . 1 Exploration Rate (%) 32 | 3 42 53 Regions Visited 2 Branch Regions . Pre-discovered Areas . | . . . Known Exits Taken 2 | 1 1 . Unknown Exits Taken . | . . . Scrap Searched . | . . . Spaces Dug 7 | . . 7 Terrain Destroyed 7 | . . 7 Melee . | . . . Projectile 7 | . . 7 AOE . | . . . Terrain Rammed . | . . . Walls Destroyed . | . . . Machines Disabled . | . . . Actions | -11 -10 -9 --------- Run | Scr Mat Mat Total 1006 | 76 214 716 Wait 79 | 2 . 77 Move 861 | 57 201 603 Hop 8 | . . 8 Pick Up 17 | 8 5 4 Fast Attach . | . . . Attach 12 | 8 3 1 Detach 1 | . 1 . Swap 3 | . . 3 Drop 5 | 1 2 2 Fire 9 | . 2 7 Melee . | . . . Ram 11 | . . 11 Kick . | . . . Crush . | . . . Escape Stasis . | . . . Rewire . | . . . Trap . | . . . Miscellaneous . | . . . Route ------- -11/Scrapyard -10/Materials (discovered 3 exits: *Mat / *Min x2) -9/Materials (discovered 1 exit: *Mat) History --------- Turn | Location | Event 3 | -11/Scrapyard | Identified exit to Materials 3 | -11/Scrapyard | Discovered exit to Materials (range 16) 77 | -11/Scrapyard | Entered Materials 77 | -10/Materials | Evolved 1 slot: Utility x1 125 | -10/Materials | Identified exit to Mines 125 | -10/Materials | Discovered exit to Mines (range 13) 134 | -10/Materials | Discovered exit to Mines (range 16) 158 | -10/Materials | Identified exit to Materials 158 | -10/Materials | Discovered exit to Materials (range 11) 176 | -10/Materials | Entered another Materials area 176 | -9/Materials | Evolved 2 slots: Utility x2 307 | -9/Materials | Crushed by falling debris 308 | -9/Materials | Build established: Hacker-Mutant 338 | -9/Materials | Lost 4 parts (1p1u2w) 472 | -9/Materials | Identified exit to Materials 472 | -9/Materials | Discovered exit to Materials (range 10) 507 | -9/Materials | Core integrity fell below 50% 538 | -9/Materials | Core integrity fell below 20% 543 | -9/Materials | Destroyed by S-10 Pest with Light Assault Rifle Last Messages --------------- System corrupted: Substantial component data lost. VTOL Module destroyed. System corrupted: Core Shielding rejected. O-16 Technician distress signal alerts nearby ally. O-16 Technician: "IFF HANDSHAKE FAILED. SECURING TERMINAL." ALERT: Hostiles spotted, dispatching reinforcements to Terminal M008. Slammed into S-10 Pest. S-10 Pest destroyed. [Achievement: Fist Fight] Acquired 20 matter. Slammed into S-10 Pest. System corrupted: Energy discharge (-40). Slammed into S-10 Pest. S-10 Pest destroyed. Acquired 20 matter. Slammed into S-10 Pest. S-10 Pest destroyed. Slammed into S-10 Pest. Acquired 5 matter. Slammed into S-10 Pest. Map ----- +----------------------------------------------------+ | ???????????????????????????????? | | ???????????????????????????????? | | ???????????????????????????????? | | ???????????????????????????????? | | ???????????????????????????????? | | ???????????????????????????????? | | ???????????????????????????????? | | ???????????????????????????????? | | ???????????????????????????????? | | ???????????????#???????????????? | | ??????????????? ???????????????? | | ??????????????? ???????????????? | | ?????????????? ???????????????? | | ?????????????? ???????????????? | | ?????????????? ???????????????? | | ?????????????? #???????????????? | | ?????????????? #???????????????? | | ?????????????# #???????????????? | | ?###########?# #???????????????? | | ?# ### ###?????????????? | | ?# # #?????????????? | | ?# """ """ # #?????????????? | | ?# """ """ + T +?????????????? | | ?# """=""" # #?????????????? | | ?# [%sY # #?????????????? | | ?# *@%* ## ##?????????????? | | ?# s ## #??????????????? | | ?############ #??????????????? | | ????????????# #??????????????? | | ????????????# #??????????????? | | ????????????# #??????????????? | | ????????????# ! ###############? | | ????????????# # ## | | ????????????# # ## """ | | ????????????# # """ ## """ | | ????????????# # """ ## """ | | ????????????# # """ ## | | ????????????# # ??# """ | | ????????????# ###+##### """ | | ????????????# / """ | | ????????????# ## | | ????????????# ######/#+ | | ????????????+ ###### #????# | | ????????????# #????# ###### | | ????????????# #????# ## + | | ????????????# #????# ## #### | | ????????????# #????# ## #??? | | ???????????? #????# ## #??? | | ???????????## #????? ## #??? | | ????????????# #????? ?# #??? | +----------------------------------------------------+ Best States ------------- Heat Dissipation 28 Energy Generation 10 Energy Capacity 250 Matter Stores 267 Matter Capacity 300 Sight Range 16 Robot Scan Range 10 Terrain Scan Density 10 Resistance: KI 35 Resistance: TH 35 Resistance: EX 35 Resistance: EM 35 Resistance: I 35 Resistance: S 35 Resistance: P 35 Core Shielding 20 Evasion (%) 62 Offensive Hacking 20 Item Schematics ----------------- None Robot Schematics ------------------ None Fabricated ------------ Nothing Alien Tech Used ----------------- None Achievements -------------- Fist Fight Challenges ------------ None Game ------ Seed HardlightPortableRay Manual? 0 Play Time 00:15:12 Cumulative 7.4 hours Start 2021.09.29 @ 08:39:37 End 2021.09.29 @ 08:55:21 Sessions 1 Manual Loads 0 Difficulty Explorer Special Mode None Game No. 4 Rogue 0 Adventurer 2 Explorer 2 Win Type - Total 0 Types 0/0/0/0/0/0/0/0/0 Lore% 3 Gallery% 11 Achievement% 10 Wizard Run 0 Options --------- ASCII 0 Keyboard 0 Movement Numpad Keybinds 0 Fullscreen 1 Font 18/SmallcapsGlow Map View 112x50 Tactical HUD 0 Map Filters NONE Filters NONE Steam X RUN: 670f027a-23b4-4d33-9cd4-ea5b1c9e87ce